bitfinex/quotes_ETHUSD_20240927
["timestamp","ask_amount","ask_price","bid_price","bid_amount"]
[1727474814556,0.77607324,2697.1,2697.0,5.34800802]
[1727474814886,1.16365978,2697.2,2697.0,5.34800802]
[1727474815180,1.16365978,2697.2,2697.0,1.64018802]
[1727474815484,1.16365978,2697.1,2697.0,1.64018802]
[1727474815851,1.5516234,2697.3,2697.0,1.64018802]
[1727474815852,1.16365978,2697.2,2697.0,1.64018802]
[1727474816264,1.16365978,2697.1,2697.0,1.64018802]
[1727474818598,1.5516234,2697.2,2697.0,1.64018802]
[1727474818973,1.16470762,2697.1,2697.0,1.64018802]
[1727474821396,1.5516234,2697.2,2697.0,1.64018802]
[1727474821909,1.5516234,2697.1,2697.0,1.64018802]
[1727474823360,1.5516234,2697.1,2697.0,6.16580802]
[1727474823562,1.5516234,2697.2,2697.0,6.16580802]
[1727474823860,1.5516234,2697.1,2697.0,6.16580802]
[1727474825133,1.5516234,2697.1,2697.0,2.45798802]
[1727474828476,1.5516234,2697.1,2697.0,6.16580802]
[1727474830568,1.55415543,2697.1,2697.0,6.16580802]
[1727474831176,3.14533438,2697.5,2697.0,6.16580802]
[1727474831177,1.94186198,2697.3,2697.1,3.70768]
[1727474831488,0.77729249,2697.7,2697.5,4.47753]
[1727474831698,1.94186198,2698.1,2697.7,4.47726]
[1727474831699,0.77729249,2697.8,2697.7,4.47726]
[1727474831900,0.77729249,2697.8,2697.7,6.02178953]
[1727474832294,1.55415543,2698.0,2697.9,3.70658]
[1727474832501,1.55415543,2698.0,2697.9,5.25110953]
[1727474832796,1.55415543,2698.0,2697.9,5.34403478]
[1727474832999,1.55415543,2698.0,2697.9,1.63745478]
[1727474833187,1.55415543,2698.0,2697.7,4.47716]
[1727474833388,1.55415543,2698.0,2697.8,5.25116953]
[1727474833686,1.55415543,2698.0,2697.8,5.34382974]
[1727474835197,1.55415543,2698.1,2697.8,5.34382974]
[1727474836409,0.77635846,2697.9,2697.8,5.34382974]
[1727474838301,0.77635846,2698.0,2697.8,5.34382974]
[1727474838685,0.77635846,2697.9,2697.8,5.34382974]
[1727474839220,0.77635846,2698.0,2697.8,5.34382974]
[1727474842316,0.77635846,2698.1,2697.8,5.34382974]
[1727474842497,0.77635846,2698.0,2697.9,3.70656]
[1727474842701,0.77635846,2698.0,2697.9,3.7987771]
[1727474843204,0.77635846,2698.0,2697.9,0.0922171]
[1727474843714,0.77635846,2698.1,2697.9,0.0922171]
[1727474843935,0.77635846,2698.0,2697.9,0.0922171]
[1727474844109,0.77635846,2698.1,2697.9,0.0922171]
[1727474844510,0.77635846,2698.0,2697.9,0.0922171]
[1727474846135,0.77635846,2698.1,2697.9,0.0922171]
[1727474846445,0.77635846,2698.0,2697.9,3.7987871]
[1727474846733,0.77635846,2698.1,2697.9,3.7987871]
[1727474850026,0.77635846,2698.1,2698.0,3.70644]
[1727474850339,0.77635846,2698.1,2698.0,3.79857043]
[1727474852512,0.77635846,2698.2,2698.0,3.79857043]
[1727474852856,0.77635846,2698.1,2698.0,3.79857043]
[1727474853349,0.77635846,2698.1,2698.0,6.65880996]
[1727474853556,0.77635846,2698.5,2698.4,3.70589]
[1727474853756,0.77635846,2698.5,2698.4,1.54452953]
[1727474854052,0.77635846,2698.5,2698.4,1.63642586]
[1727474856152,1.1636424,2698.5,2698.4,1.63642586]
[1727474856457,1.1636424,2698.6,2698.4,1.63642586]
[1727474856966,0.77497877,2698.5,2698.4,1.63642586]
[1727474858933,0.77497877,2698.5,2698.4,0.09189633]
[1727474859267,0.77497877,2698.5,2698.1,6.03213953]
[1727474859268,1.20183643,2698.5,2698.1,6.03213953]
[1727474859472,1.20183643,2698.5,2698.4,0.09175099]
[1727474859683,1.20183643,2698.5,2698.1,9.73835953]
[1727474859847,0.77497877,2698.4,2698.1,6.03213953]
[1727474861469,0.23654788,2698.3,2698.0,1.54452953]
[1727474861770,1.55077877,2698.4,2698.1,3.70624]
[1727474862149,0.7758,2698.4,2698.1,3.70624]
[1727474863185,1.55077877,2698.4,2698.1,3.70624]
[1727474863384,1.55077877,2698.4,2698.0,1.54452953]
[1727474863746,1.55077877,2698.4,2698.1,3.70623]
[1727474864196,0.7758,2698.4,2698.1,3.70623]
[1727474864363,1.55077877,2698.4,2698.1,3.70623]
[1727474867990,1.55077877,2698.4,2698.1,7.41246]
[1727474868193,0.77497877,2698.3,2698.1,3.70623]
[1727474868395,1.55077877,2698.4,2698.1,3.70623]
[1727474868561,1.86490665,2698.4,2698.1,3.70623]
[1727474868764,0.77497877,2698.3,2698.1,3.70623]
[1727474869487,0.77497877,2698.3,2698.1,7.41246]
[1727474869670,0.77497877,2698.3,2698.1,3.70623]
[1727474870495,0.77497877,2698.3,2698.1,7.41246]
[1727474870822,0.77497877,2698.3,2698.1,3.70623]
[1727474871208,0.77497877,2698.2,2698.1,3.70623]
[1727474871380,0.77497877,2698.3,2698.1,3.70623]
[1727474871581,0.77497877,2698.2,2698.1,3.70623]
[1727474872022,0.77497877,2698.2,2698.1,3.79812375]
[1727474873208,1.1636424,2698.2,2698.1,3.79812375]
[1727474873432,1.1636424,2698.3,2698.2,3.70617]
[1727474873730,1.1636424,2698.4,2698.3,3.70603]
[1727474874435,1.55415543,2698.4,2698.3,3.79777856]
[1727474874595,1.55415543,2698.5,2698.3,3.79777856]
[1727474874801,1.16536917,2698.4,2698.3,3.70603]
[1727474875209,1.55415543,2698.4,2698.3,3.70603]
[1727474875414,1.55415543,2698.4,2698.2,6.00279953]
[1727474875732,1.16590214,2698.3,2698.2,6.00279953]
[1727474876335,1.55415543,2698.3,2698.2,6.00279953]
[1727474879559,1.9422407,2698.4,2698.2,6.00279953]
[1727474880277,1.55563132,2698.3,2698.2,6.00279953]
[1727474880562,1.94452014,2698.4,2698.2,6.00279953]
[1727474881230,1.5557242,2698.3,2698.2,6.00279953]
[1727474881588,1.5557242,2698.3,2698.2,6.09457848]
[1727474881762,1.94452014,2698.4,2698.2,1.63630848]
[1727474882065,1.55565825,2698.3,2698.2,1.63630848]
[1727474882767,1.94452014,2698.4,2698.2,1.63630848]
[1727474882965,1.94452014,2698.4,2698.3,3.70603]
[1727474883122,1.94452014,2698.4,2698.2,1.63630848]
[1727474883323,1.94452014,2698.4,2698.2,1.54452953]
[1727474883563,1.94465594,2698.4,2698.2,5.25056953]
[1727474885031,1.55581599,2698.3,2698.2,5.25056953]
[1727474885231,1.94465594,2698.3,2698.2,5.25056953]
[1727474885444,1.94465594,2698.4,2698.2,5.25056953]
[1727474886584,1.94465594,2698.4,2698.2,1.54452953]
[1727474886739,1.94465594,2698.3,2698.2,1.54452953]
[1727474888057,1.555931,2698.3,2698.2,1.54452953]
[1727474888679,1.55595494,2698.3,2698.2,1.54452953]
[1727474889395,1.94492788,2698.4,2698.2,1.54452953]
[1727474891761,1.94492788,2698.3,2698.2,1.54452953]
[1727474892159,1.94492788,2698.3,2698.2,1.63630848]
[1727474892668,2.72462788,2698.3,2698.2,0.09177895]
[1727474892916,4.48573,2698.3,2698.0,1.54452953]
[1727474893121,1.94517647,2698.2,2698.0,1.54452953]
[1727474893413,1.94536637,2698.1,2698.0,1.54452953]
[1727474894485,1.94536637,2698.2,2698.0,1.54452953]
[1727474895313,1.94536637,2698.1,2698.0,1.54452953]
[1727474897313,1.94596886,2698.1,2698.0,1.54452953]
[1727474898398,1.94609888,2698.1,2698.0,1.54452953]
[1727474899415,4.9627891,2698.3,2698.0,1.54452953]
[1727474899626,6.10212085,2698.3,2698.0,1.54452953]
[1727474901056,1.94603297,2698.1,2698.0,1.54452953]
[1727474901273,1.94606265,2698.1,2697.9,5.25109953]
[1727474901438,1.94606265,2698.0,2697.9,5.25109953]
[1727474901850,1.94606265,2698.0,2697.9,5.34049676]
[1727474903346,1.94567597,2698.0,2697.9,5.34049676]
[1727474904067,1.94567597,2698.1,2697.9,5.34049676]
[1727474904246,6.10153523,2698.3,2697.9,5.34049676]
[1727474904247,1.94567597,2698.0,2697.9,5.34049676]
[1727474908182,1.94504212,2698.0,2697.9,5.34049676]
[1727474908948,1.94504212,2698.0,2697.9,1.63392676]
[1727474909684,2.70044212,2698.0,2697.9,1.63392676]
[1727474909889,0.7554,2698.0,2697.9,1.63392676]
[1727474910045,0.7554,2698.0,2697.9,1.54452953]
[1727474910372,2.70010672,2698.0,2697.9,1.63400646]
[1727474910583,0.7554,2698.0,2697.9,1.63400646]
[1727474910890,3.08945055,2698.2,2697.9,5.34058646]
[1727474911186,3.08945055,2698.2,2698.1,1.54452953]
[1727474911480,4.33990835,2698.2,2698.1,1.54452953]
[1727474911704,3.08945055,2698.2,2698.1,1.54452953]
[1727474912928,0.7554,2698.2,2698.1,1.54452953]
[1727474913201,3.0885943,2698.2,2698.1,1.54452953]
[1727474913371,0.7554,2698.2,2698.1,1.54452953]
[1727474913808,3.0885943,2698.2,2698.1,1.54452953]
[1727474914619,0.7554,2698.2,2698.1,1.54452953]
[1727474915274,3.0885943,2698.2,2698.1,1.54452953]
[1727474915783,0.7554,2698.2,2698.1,1.54452953]
[1727474916268,3.0885943,2698.2,2698.1,1.54452953]
[1727474916469,0.7554,2698.2,2698.1,1.54452953]
[1727474917611,0.7554,2698.2,2697.9,3.70658]
[1727474917814,0.7554,2698.2,2698.0,1.54452953]
[1727474918108,0.7554,2698.2,2698.0,1.63415419]
[1727474918872,1.94402681,2698.1,2698.0,1.54452953]
[1727474921332,1.94402681,2698.2,2698.0,1.54452953]
[1727474921539,1.94402681,2698.2,2698.1,2.34632953]
[1727474921752,1.94402681,2698.3,2698.1,2.34632953]
[1727474921957,1.55544314,2698.2,2698.1,0.8018]
[1727474922109,1.55544314,2698.2,2698.1,4.50811]
[1727474922309,1.94402681,2698.3,2698.1,4.50811]
[1727474922547,1.55546435,2698.2,2698.1,4.50811]
[1727474922719,1.55546435,2698.2,2698.1,6.05263953]
[1727474924629,1.55550167,2698.2,2698.1,2.34632953]
[1727474926549,1.55555974,2698.2,2698.1,6.05261953]
[1727474926757,1.94432621,2698.3,2698.1,6.05261953]
[1727474927317,4.17930817,2698.5,2698.1,6.05261953]
[1727474927318,1.94432621,2698.2,2698.1,6.05261953]
[1727474927618,1.94432621,2698.3,2698.1,6.05261953]
[1727474927808,1.94451808,2698.3,2698.2,1.54452953]
[1727474928013,3.7059,2698.4,2698.2,1.54452953]
[1727474928215,6.0393217,2698.4,2698.2,1.54452953]
[1727474928419,7.88550742,2698.4,2698.2,1.54452953]
[1727474928726,0.7785,2698.3,2698.1,1.54452953]
[1727474929054,1.94449001,2698.2,2698.1,1.54452953]
[1727474929452,1.9445161,2698.2,2698.1,1.54452953]
[1727474930657,4.48454,2698.3,2698.1,1.54452953]
[1727474930812,8.66433069,2698.3,2698.1,1.54452953]
[1727474931014,6.8179617,2698.3,2698.1,1.54452953]
[1727474931620,4.48454,2698.3,2698.1,1.54452953]
[1727474932024,4.48454,2698.3,2698.2,0.08930131]
[1727474932559,8.6645626,2698.3,2698.2,0.08930131]
[1727474932749,0.7785,2698.3,2698.2,0.08930131]
[1727474933062,3.11217828,2698.3,2698.2,0.08930131]
[1727474933567,0.7785,2698.3,2698.2,0.08930131]
[1727474933772,0.7785,2698.3,2698.1,1.54452953]
[1727474933924,1.94494408,2698.2,2698.1,1.54452953]
[1727474934542,0.7785,2698.3,2698.1,6.01163953]
[1727474934543,1.94504787,2698.3,2698.1,6.01163953]
[1727474934755,1.94504787,2698.2,2698.1,6.01163953]
[1727474934938,1.94504787,2698.3,2698.1,9.71794953]
[1727474935138,1.94511646,2698.3,2698.2,1.54452953]
[1727474935338,1.94511646,2698.3,2698.2,5.25069953]
[1727474936264,1.94511646,2698.3,2698.2,1.54452953]
[1727474936660,1.94528256,2698.3,2698.2,1.54452953]
[1727474936861,4.18046021,2698.5,2698.2,1.54452953]
[1727474937236,7.88623021,2698.5,2698.2,1.54452953]
[1727474937440,5.55255193,2698.5,2698.2,1.54452953]
[1727474937626,1.94538819,2698.3,2698.2,1.54452953]
[1727474937826,6.0402566,2698.5,2698.2,1.54452953]
[1727474938066,7.887296,2698.5,2698.2,1.54452953]
[1727474938681,1.8470394,2698.4,2698.2,1.54452953]
[1727474938968,2.3344866,2698.4,2698.2,1.54452953]
[1727474939636,7.887296,2698.5,2698.2,1.54452953]
[1727474939843,4.181526,2698.5,2698.2,1.54452953]
[1727474940363,2.3344866,2698.4,2698.2,1.54452953]
[1727474940540,7.887316,2698.5,2698.3,0.08922403]
[1727474940880,4.181526,2698.4,2698.2,1.54452953]
[1727474941045,2.33440239,2698.4,2698.2,1.54452953]
[1727474941364,2.33440239,2698.4,2698.3,0.08922403]
[1727474941530,2.33440239,2698.4,2698.2,1.54452953]
[1727474941731,7.88723179,2698.5,2698.3,0.08922403]
[1727474941957,7.88723179,2698.5,2698.2,1.54452953]
[1727474942155,7.88723179,2698.5,2698.3,0.08922403]
[1727474942359,7.88723179,2698.5,2698.2,1.54452953]
[1727474942561,7.88723179,2698.5,2698.3,0.08922403]
[1727474942757,4.18144179,2698.4,2698.2,1.54452953]
[1727474942928,6.04031239,2698.4,2698.3,0.08922403]
[1727474943133,7.88735179,2698.4,2698.2,1.54452953]
[1727474943453,1.8470394,2698.3,2698.2,1.54452953]
[1727474943663,7.88735179,2698.4,2698.2,1.54452953]
[1727474943832,7.88735179,2698.4,2698.0,1.54452953]
[1727474943833,3.70603,2698.3,2698.0,1.54452953]
[1727474944030,1.94516116,2698.1,2698.0,1.54452953]
[1727474945665,1.94518963,2698.1,2698.0,1.54452953]
[1727474946355,1.55622468,2698.1,2698.0,5.25089953]
[1727474946862,1.94518963,2698.2,2698.0,5.25089953]
[1727474947065,1.55619441,2698.1,2698.0,5.34038353]
[1727474947231,1.55619441,2698.1,2698.0,5.25089953]
[1727474947569,1.55619441,2698.1,2698.0,5.34038353]
[1727474951129,1.94518963,2698.2,2698.0,5.34038353]
[1727474951555,1.55613604,2698.1,2698.0,5.34038353]
[1727474952269,1.94518963,2698.2,2698.0,5.34038353]
[1727474952772,1.55614212,2698.1,2698.0,5.34038353]
[1727474953016,1.94518963,2698.2,2698.0,5.34038353]
[1727474953633,1.94518963,2698.1,2698.0,5.34038353]
[1727474953829,1.94518963,2698.2,2698.0,5.34038353]
[1727474954056,1.94518963,2698.2,2698.1,1.54452953]
[1727474954458,1.94518963,2698.2,2698.1,1.6339175]
[1727474954973,2.33422755,2698.4,2698.1,1.6339175]
[1727474955473,4.17830486,2698.4,2698.1,1.6339175]
[1727474955768,2.33436675,2698.4,2698.1,1.6339175]
[1727474956172,1.94537885,2698.2,2698.1,1.6339175]
[1727474957201,4.17830486,2698.4,2698.1,1.6339175]
[1727474957408,2.33436675,2698.4,2698.1,1.6339175]
[1727474957576,2.3346136,2698.3,2698.1,1.6339175]
[1727474957778,4.17855171,2698.4,2698.1,1.6339175]
[1727474958018,2.3346136,2698.4,2698.3,1.54452953]
[1727474958360,2.3346136,2698.4,2698.3,1.63374419]
[1727474958702,2.3346136,2698.4,2698.3,1.54452953]
[1727474959003,2.3346136,2698.4,2698.3,1.63374419]
[1727474960906,4.17855171,2698.5,2698.3,1.63374419]
[1727474961200,2.3346136,2698.4,2698.3,1.63374419]
[1727474964529,2.3346136,2698.4,2698.3,1.60497406]
[1727474969137,2.3346136,2698.6,2698.3,1.60497406]
[1727474969346,1.94666198,2698.4,2698.3,3.79524466]
[1727474969638,1.55695291,2698.4,2698.3,3.79524466]
[1727474969949,1.55695291,2698.4,2698.3,5.24647047]
[1727474970290,1.55695291,2698.4,2698.3,5.33508251]
[1727474971701,1.55695291,2698.5,2698.4,3.70589]
[1727474971942,1.55695291,2698.5,2698.4,5.33894493]
[1727474972127,1.55695291,2698.5,2698.4,5.9293461]
[1727474973229,1.94622795,2698.6,2698.4,1.63305493]
[1727474973537,1.94622795,2698.5,2698.4,0.0885254]
[1727474973702,1.94622795,2698.5,2698.2,3.70617]
[1727474973891,1.16699587,2698.3,2698.2,3.70617]
[1727474974087,1.55593124,2698.4,2698.1,4.49659]
[1727474974315,1.16695393,2698.2,2698.1,4.49659]
[1727474974529,1.16695393,2698.3,2698.1,0.7903]
[1727474974692,1.16695393,2698.3,2698.2,1.54452953]
[1727474975020,1.55593124,2698.4,2698.2,1.54452953]
[1727474975021,1.94477211,2698.4,2698.2,1.54452953]
[1727474975334,1.94472771,2698.3,2698.2,1.54452953]
[1727474975586,2.92750161,2698.3,2698.2,1.54452953]
[1727474976036,2.92759422,2698.3,2698.2,1.54452953]
[1727474976330,1.94482032,2698.3,2698.2,1.54452953]
[1727474976892,1.94482032,2698.3,2698.2,1.63320947]
[1727474978250,1.55625215,2698.6,2698.2,4.63320947]
[1727474978537,2.33372654,2699.6,2699.1,3.70493]
[1727474978737,0.7724,2699.8,2699.6,1.54452953]
[1727474978939,3.10612654,2699.8,2699.6,1.54452953]
[1727474979144,0.7724,2699.8,2699.7,0.08038924]
[1727474983760,0.7724,2699.8,2699.4,5.24903953]
[1727474983922,0.7724,2699.8,2699.5,0.08054831]
[1727474988234,1.54699639,2699.8,2699.5,0.08054831]
[1727474988728,0.7724,2699.8,2699.5,0.08054831]
[1727474999836,0.7724,2699.8,2699.5,3.78490831]
[1727475003339,0.8173,2700.0,2699.6,5.24863953]
[1727475003536,0.8173,2700.0,2699.7,3.78356441]
[1727475003771,0.8173,2700.0,2699.8,1.54452953]
[1727475003986,4.54759639,2700.2,2699.8,1.54452953]
[1727475004138,4.54759639,2700.2,2699.9,0.07932131]
[1727475004655,6.38287122,2700.2,2699.8,1.54452953]
[1727475005035,6.38287122,2700.2,2699.9,0.07932131]
[1727475005239,6.38287122,2700.2,2699.8,1.54452953]
[1727475005440,0.77459639,2700.1,2699.9,0.07932131]
[1727475005675,6.38287122,2700.2,2699.8,1.54452953]
[1727475006044,0.77459639,2700.1,2699.8,1.54452953]
[1727475006469,0.77459639,2700.1,2699.9,0.07932131]
[1727475006683,4.54759639,2700.2,2699.9,0.07932131]
[1727475006886,4.54759639,2700.2,2699.8,1.54452953]
[1727475007584,0.77459639,2700.1,2700.0,1.54452953]
[1727475007785,3.773,2700.2,2700.0,1.62376429]
[1727475007786,0.773,2700.2,2700.0,1.62376429]
[1727475009575,0.773,2700.2,2700.0,0.07923476]
[1727475010481,1.54759639,2700.2,2700.0,0.07923476]
[1727475010967,0.773,2700.2,2700.0,0.07923476]
[1727475011653,1.54759639,2700.2,2700.0,0.07923476]
[1727475012356,1.54759639,2700.2,2699.9,3.7038]
[1727475012550,1.54759639,2700.2,2700.1,0.07892347]
[1727475012757,1.54759639,2700.2,2700.0,0.07901]
[1727475012989,1.54759639,2700.2,2700.1,0.07892347]
[1727475013384,1.54759639,2700.2,2699.9,3.7038]
[1727475013579,1.54759639,2700.2,2700.1,0.07892347]
[1727475013778,1.54758211,2700.2,2700.0,0.07901]
[1727475013980,0.773,2700.2,2700.1,0.07892347]
[1727475014366,0.773,2700.2,2699.8,1.54452953]
[1727475014681,0.773,2699.9,2699.4,0.7833]
[1727475014991,0.773,2699.9,2699.5,3.70431]
[1727475015196,1.54773877,2699.9,2699.5,3.70431]
[1727475017763,0.77473877,2699.8,2699.5,3.70431]
[1727475018006,1.54773877,2699.9,2699.5,3.70431]
[1727475018998,0.77473877,2699.8,2699.5,3.70431]
[1727475020460,0.77473877,2699.7,2699.5,7.40862]
[1727475020794,1.93509256,2699.9,2699.5,3.70431]
[1727475020795,0.77473877,2699.8,2699.5,3.70431]
[1727475021475,0.77473877,2699.7,2699.5,7.40862]
[1727475021971,0.77473877,2699.7,2699.6,3.78092597]
[1727475022495,1.16209256,2699.7,2699.6,3.78092597]
[1727475023561,1.54980934,2699.7,2699.6,3.78092597]
[1727475025175,1.16733617,2699.7,2699.6,3.78092597]
[1727475025370,1.54980934,2699.8,2699.7,3.70411]
[1727475025577,1.54980934,2699.9,2699.7,6.02883953]
[1727475025889,1.16729767,2699.8,2699.7,6.1780031]
[1727475026070,1.54980934,2700.0,2699.8,3.70397]
[1727475026270,1.54980934,2700.0,2699.9,1.54452953]
[1727475026575,1.54980934,2700.0,2699.9,5.32328728]
[1727475027173,1.55616558,2700.0,2699.9,5.32328728]
[1727475027482,1.55601783,2700.0,2699.9,5.32328728]
[1727475028002,1.93803317,2700.1,2699.9,5.32328728]
[1727475028209,1.55605729,2700.0,2699.9,5.32328728]
[1727475028398,1.55597705,2700.0,2699.9,5.32328728]
[1727475030182,1.55597705,2700.1,2700.0,4.4839]
[1727475030608,1.55597705,2700.1,2700.0,4.5587312]
[1727475031110,1.1666806,2700.1,2700.0,4.5587312]
[1727475032190,1.1666806,2700.1,2700.0,4.59686105]
[1727475032689,1.94408523,2700.4,2700.1,3.70356]
[1727475032690,1.55597705,2700.3,2700.1,3.70356]
[1727475033006,1.55597705,2700.3,2700.1,5.24808953]
[1727475033331,1.16628848,2700.2,2700.1,5.24808953]
[1727475034190,1.55597705,2700.3,2700.1,5.24808953]
[1727475034395,1.16615254,2700.2,2700.1,5.24808953]
[1727475035393,1.16615254,2700.3,2700.1,5.24808953]
[1727475035599,1.16615254,2700.3,2700.2,3.70342]
[1727475036595,1.16615254,2700.3,2700.1,1.54452953]
[1727475036792,1.16615254,2700.2,2700.1,1.54452953]
[1727475037029,0.7771753,2700.2,2700.1,5.24804953]
[1727475037229,0.7771753,2700.2,2700.1,5.85087948]
[1727475039722,1.16615254,2700.2,2700.1,5.85087948]
[1727475040234,1.16615254,2700.3,2700.2,3.70342]
[1727475040435,1.16615254,2700.3,2700.2,4.44113169]
[1727475042406,1.16615254,2700.4,2700.3,3.70329]
[1727475042615,1.16615254,2700.4,2700.3,5.24781953]
[1727475042816,1.16615254,2700.4,2700.3,5.85064948]
[1727475045935,1.16615254,2700.5,2700.3,2.14735948]
[1727475046243,1.16615254,2700.5,2700.4,3.70315]
[1727475048813,1.16615254,2700.5,2700.3,5.85063948]
[1727475049331,1.16615254,2700.5,2700.3,5.24780953]
[1727475049513,1.16615254,2700.4,2700.3,1.54452953]
[1727475049851,1.16615254,2700.4,2700.2,1.54452953]
[1727475049852,1.16523884,2700.4,2700.2,1.54452953]
[1727475050052,0.776814,2700.3,2700.2,1.54452953]
[1727475051850,1.16525064,2700.3,2700.2,1.54452953]
[1727475052054,0.77679562,2700.3,2700.2,1.73075392]
[1727475052215,1.16525064,2700.4,2700.2,1.73075392]
[1727475052571,2.38067705,2700.5,2700.3,0.11207595]
[1727475053159,1.16525009,2700.4,2700.3,0.11207595]
[1727475058370,1.16525009,2700.4,2700.3,3.81536595]
[1727475058574,0.77654234,2700.4,2700.3,5.4812965]
[1727475058873,1.16525009,2700.4,2700.3,0.11207595]
[1727475059280,1.16525009,2700.4,2700.3,3.81536595]
[1727475059643,1.16525009,2700.4,2700.3,0.11207595]
[1727475060564,1.16525009,2700.4,2700.3,3.81536595]
[1727475060939,1.16525009,2700.4,2700.3,0.11207595]
[1727475061840,1.16525009,2700.4,2700.3,3.81536595]
[1727475062238,1.16525009,2700.4,2700.3,0.11207595]
[1727475062843,1.55597705,2700.5,2700.3,0.11207595]
[1727475063195,1.16448915,2700.4,2700.3,0.11207595]
[1727475063364,1.16448915,2700.5,2700.3,0.11207595]
[1727475063567,1.16448915,2700.4,2700.3,0.11207595]
[1727475065575,1.16448915,2700.4,2700.3,3.81536595]
[1727475065767,1.16448915,2700.4,2700.3,0.86857595]
[1727475066293,1.16481995,2700.4,2700.3,4.57185595]
[1727475066575,1.1649489,2700.4,2700.3,4.57185595]
[1727475068292,1.55597705,2700.5,2700.3,4.57185595]
[1727475068581,1.55597705,2700.4,2700.3,4.57185595]
[1727475071012,1.94311621,2700.4,2700.3,0.86857595]
[1727475071188,1.55454795,2700.4,2700.3,4.57186595]
[1727475071498,1.55449408,2700.4,2700.3,4.57186595]
[1727475071794,1.94311621,2700.5,2700.3,4.57186595]
[1727475071998,1.55487335,2700.4,2700.3,4.45979]
[1727475072509,1.94311621,2700.5,2700.3,4.45979]
[1727475073092,1.94311621,2700.4,2700.3,4.45979]
[1727475073490,1.55505882,2700.4,2700.3,4.45979]
[1727475074458,1.94311621,2700.4,2700.3,4.45979]
[1727475074689,1.94311621,2700.5,2700.3,4.45979]
[1727475074902,1.55545666,2700.4,2700.3,4.45979]
[1727475075105,1.5554516,2700.4,2700.3,4.45979]
[1727475075263,1.94311621,2700.5,2700.3,4.45979]
[1727475075459,1.55568165,2700.4,2700.3,4.45979]
[1727475076498,1.16690122,2700.4,2700.3,4.45979]
[1727475076702,0.77797333,2700.4,2700.3,4.45979]
[1727475079512,0.77797333,2700.5,2700.4,3.70315]
[1727475079715,0.77797333,2700.5,2700.4,5.24767953]
[1727475080013,1.16690122,2700.6,2700.4,5.24767953]
[1727475080220,1.16690122,2700.6,2700.5,3.70301]
[1727475081922,1.16690122,2700.6,2700.5,3.81465325]
[1727475084617,1.94404235,2700.6,2700.5,3.81465325]
[1727475084826,0.77714113,2700.6,2700.5,3.81465325]
[1727475086691,0.77714113,2700.6,2700.5,4.62855325]
[1727475087092,1.16690122,2700.7,2700.6,3.70287]
[1727475087295,1.16690122,2700.7,2700.6,5.97624914]
[1727475087798,1.16690122,2700.8,2700.6,5.97624914]
[1727475087995,1.16690122,2700.8,2700.7,3.70274]
[1727475088199,1.16690122,2700.8,2700.7,4.53745478]
[1727475088822,1.55584946,2700.8,2700.7,4.53745478]
[1727475089830,1.16535422,2700.8,2700.7,4.53745478]
[1727475090920,1.55584946,2700.9,2700.7,4.53745478]
[1727475091121,1.55584946,2700.9,2700.8,1.54452953]
[1727475091321,1.55584946,2700.9,2700.8,1.65565232]
[1727475092835,1.94198,2701.0,2700.8,1.65565232]
[1727475093142,1.55345885,2700.9,2700.8,1.65565232]
[1727475095934,1.55345885,2701.0,2700.8,1.65565232]
[1727475096839,1.55345885,2700.9,2700.8,1.65565232]
[1727475098134,1.1650003,2700.9,2700.8,1.65565232]
[1727475098304,1.55345885,2701.0,2700.8,1.65565232]
[1727475099415,1.55345885,2700.9,2700.8,1.65565232]
[1727475100346,1.55345885,2701.0,2700.8,1.65565232]
[1727475100543,1.55345885,2700.9,2700.8,1.65565232]
[1727475101601,1.55345885,2700.9,2700.8,0.11112279]
[1727475101952,1.55345885,2700.9,2700.8,5.35825232]
[1727475102307,1.55345885,2700.9,2700.8,1.65565232]
[1727475103223,1.1649873,2700.9,2700.8,1.65565232]
[1727475103424,1.55345885,2701.0,2700.8,1.65565232]
[1727475103627,1.55345885,2701.0,2700.8,5.35822232]
[1727475104021,1.55345885,2700.9,2700.8,5.35822232]
[1727475104950,1.55345885,2701.0,2700.8,5.35822232]
[1727475105152,1.1651006,2700.9,2700.8,1.65565232]
[1727475106218,1.55345885,2700.9,2700.8,1.65565232]
[1727475107348,1.55345885,2701.0,2700.8,1.65565232]
[1727475108238,1.55345885,2700.9,2700.8,1.65565232]
[1727475109351,2.71874409,2700.9,2700.8,1.65565232]
[1727475109559,1.16528524,2700.9,2700.8,1.65565232]
[1727475110546,1.16528524,2700.9,2700.8,5.35825232]
[1727475111064,1.55345885,2700.9,2700.8,5.35825232]
[1727475111427,1.94211076,2701.1,2700.8,5.35825232]
[1727475111428,1.55345885,2701.0,2700.8,5.35825232]
[1727475111756,1.16536391,2700.9,2700.8,5.35825232]
[1727475112117,1.55345885,2701.0,2700.8,5.35825232]
[1727475112532,1.55345885,2700.9,2700.8,5.35825232]
[1727475113644,1.16546784,2700.9,2700.8,5.35825232]
[1727475114417,3.49556961,2701.0,2700.8,5.35825232]
[1727475114656,1.55345885,2700.9,2700.8,5.35825232]
[1727475115634,1.55345885,2701.0,2700.8,5.35825232]
[1727475115839,1.16563995,2700.9,2700.8,5.35825232]
[1727475116662,1.55345885,2700.9,2700.8,5.35825232]
[1727475118065,1.16591854,2700.9,2700.8,5.35825232]
[1727475119437,1.16615148,2700.9,2700.8,5.35825232]
[1727475120367,1.55345885,2701.0,2700.8,5.35825232]
[1727475120569,1.55345885,2701.0,2700.8,5.43229658]
[1727475121368,1.55345885,2700.9,2700.8,5.43229658]
[1727475121664,1.55345885,2700.9,2700.8,5.35825232]
[1727475126161,1.94452335,2701.0,2700.8,5.35825232]
[1727475126473,1.94452335,2700.9,2700.8,5.35825232]
[1727475126775,1.94452335,2701.0,2700.9,3.70246]
[1727475127135,1.94452335,2701.0,2700.9,3.80721977]
[1727475127658,1.94452335,2701.1,2700.9,3.80721977]
[1727475129067,0.8272,2701.2,2700.9,3.80721977]
[1727475129274,1.9443655,2701.1,2700.9,3.80721977]
[1727475129961,1.9443655,2701.0,2700.9,3.80721977]
[1727475131859,1.9443655,2701.1,2700.9,3.80721977]
[1727475132044,1.9443655,2701.0,2700.9,3.80721977]
[1727475135588,1.9443655,2701.1,2700.9,3.80721977]
[1727475135893,1.9443655,2701.0,2700.9,3.80721977]
[1727475138196,1.94442313,2701.0,2700.9,3.80721977]
[1727475138956,1.94442313,2701.1,2700.9,3.80721977]
[1727475139279,1.94449354,2701.1,2700.9,3.80721977]
[1727475139495,1.94449354,2701.0,2700.9,3.80721977]
[1727475140967,1.94449354,2701.1,2700.9,3.80721977]
[1727475143359,1.94449354,2701.0,2700.9,3.80721977]
[1727475143561,1.94449354,2701.1,2700.9,3.80721977]
[1727475144170,1.9446575,2701.1,2700.9,3.80721977]
[1727475144376,1.9446575,2701.0,2700.9,3.80721977]
[1727475144591,1.9446575,2701.1,2700.9,3.80721977]
[1727475145283,1.9446575,2701.0,2700.9,3.80721977]
[1727475145794,1.9446575,2701.1,2701.0,3.70233]
[1727475145989,1.9446575,2701.1,2701.0,5.24685953]